[Event "POL-chT 2 Liga 2019"]
[Site "Poronin"]
[Date "2019.09.10"]
[Round "4.11"]
[White "Sowinski, Pawel"]
[Black "Kalmuk, Krzysztof"]
[Result "0-1"]
[ECO "B00"]
[WhiteElo "1606"]
[BlackElo "1999"]
[Annotator "NA"]
[PlyCount "102"]
[EventDate "2019.09.07"]
[EventType "team-tourn"]
[EventCountry "POL"]
[SourceTitle "playchess.com"]
[Source "ChessBase"]
[SourceQuality "1"]
[TimeControl "40/5400+30:1800+30"]

1. e4 {[%emt 0:00:00]} Nc6 {[%emt 0:00:00]} 2. Nf3 {[%emt 0:00:46]} d6 {[%emt 0:00:08]} 3. d4 {[%emt 0:01:12]} Nf6 {[%emt 0:00:22]} 4. Nc3 {[%emt 0:00:40]} g6 {[%emt 0:00:20]} 5. Bg5 {[%emt 0:00:29]} Bg7 {[%emt 0:00:31]} 6. e5 {[%emt 0:00:43]} Nd7 {[%emt 0:06:51]} 7. exd6 {[%emt 0:03:57]} cxd6 {[%emt 0:00:29]} 8. Bb5 {[%emt 0:01:17]} a6 {[%emt 0:14:45]} 9. Bxc6 {[%emt 0:02:56]} bxc6 {[%emt 0:00:06]} 10. Ne4 {[%emt 0:02:35]} Nf6 {[%emt 0:07:46]} 11. Bxf6 {[%emt 0:02:33]} exf6 {[%emt 0:02:27]} 12. O-O {[%emt 0:01:51]} O-O {[%emt 0:00:34]} 13. c3 {[%emt 0:01:34]} Rb8 {[%emt 0:07:16]} 14. b4 {[%emt 0:03:10]} f5 {[%emt 0:14:34]} 15. Ned2 {[%emt 0:01:45]} g5 {[%emt 0:01:55]} 16. Nb3 {[%emt 0:05:30]} g4 {[%emt 0:06:37]} 17. Nfd2 {[%emt 0:03:20]} f4 {[%emt 0:08:02]} 18. Re1 {[%emt 0:07:17]} Rb5 {[%emt 0:02:27]} 19. Qe2 {[%emt 0:07:08]} Qh4 {[%emt 0:06:26]} 20. Qe7 {[%emt 0:07:03]} Qh6 {[%emt 0:00:17]} 21. Nf1 {[%emt 0:04:55]} f3 {[%emt 0:05:28]} 22. Re3 {[%emt 0:07:59]} fxg2 {[%emt 0:04:54]} 23. Kxg2 {[%emt 0:00:35]} Rh5 {[%emt 0:00:12]} 24. Rae1 {[%emt 0:04:54]} f5 {[%emt 0:00:57]} 25. Kg1 {[%emt 0:05:17]} Rh3 {[%emt 0:05:45]} 26. Nbd2 {[%emt 0:07:05]} f4 {[%emt 0:02:05]} 27. Rxh3 {[%emt 0:03:33]} gxh3 {[%emt 0:00:14]} 28. Qe4 {[%emt 0:02:14]} d5 {[%emt 0:01:35]} 29. Qd3 {[%emt 0:04:28]} Qg5+ {[%emt 0:00:17]} 30. Ng3 {[%emt 0:00:05]} fxg3 {[%emt 0:00:19]} 31. fxg3 {[%emt 0:00:05]} Bf5 {[%emt 0:00:57]} 32. Qe3 {[%emt 0:00:17]} Qxe3+ {[%emt 0:00:20]} 33. Rxe3 {[%emt 0:00:14]} Bh6 {[%emt 0:00:05]} 34. Nf1 {[%emt 0:01:16]} Bxe3+ {[%emt 0:00:30]} 35. Nxe3 {[%emt 0:00:05]} Bd3 {[%emt 0:00:05]} 36. a4 {[%emt 0:00:18]} Rf3 {[%emt 0:00:06]} 37. b5 {[%emt 0:00:08]} cxb5 {[%emt 0:00:07]} 38. axb5 {[%emt 0:00:05]} axb5 {[%emt 0:00:09]} 39. g4 {[%emt 0:00:09]} Rxe3 {[%emt 0:00:15]} 40. Kf2 {[%emt 0:00:00]} Re2+ {[%emt 0:00:00]} 41. Kg3 {[%emt 0:00:12]} Rc2 {[%emt 0:01:03]} 42. g5 {[%emt 0:00:05]} Rxc3 {[%emt 0:00:06]} 43. g6 {[%emt 0:00:06]} Bxg6+ {[%emt 0:00:10]} 44. Kh4 {[%emt 0:00:06]} Kg7 {[%emt 0:00:35]} 45. Kg5 {[%emt 0:00:08]} h6+ {[%emt 0:00:06]} 46. Kh4 {[%emt 0:00:08]} Kf6 {[%emt 0:00:09]} 47. Kg4 {[%emt 0:00:06]} b4 {[%emt 0:00:06]} 48. Kh4 {[%emt 0:00:04]} b3 {[%emt 0:00:09]} 49. Kg4 {[%emt 0:00:06]} b2 {[%emt 0:00:06]} 50. Kh4 {[%emt 0:00:05]} b1=Q {[%emt 0:00:19]} 51. Kg4 {[%emt 0:00:10]} Qe4# {[%emt 0:00:04]} 0-1

[Event "POL-chT 2 Liga 2019"]
[Site "Poronin"]
[Date "2019.09.10"]
[Round "4.12"]
[White "Szydlowska-Duda, Marta"]
[Black "Swiech, Joanna"]
[Result "1/2-1/2"]
[ECO "D02"]
[WhiteElo "1986"]
[BlackElo "2055"]
[Annotator "NA"]
[PlyCount "25"]
[EventDate "2019.09.07"]
[EventType "team-tourn"]
[EventCountry "POL"]
[SourceTitle "playchess.com"]
[Source "ChessBase"]
[SourceQuality "1"]
[TimeControl "40/5400+30:1800+30"]

1. d4 d5 2. Bf4 Nf6 3. Nf3 c5 4. e3 {[%emt 0:00:00]} Nc6 {[%emt 0:00:00]} 5. dxc5 {[%emt 0:01:23]} e6 {[%emt 0:01:11]} 6. Bd3 {[%emt 0:03:02]} Bxc5 {[%emt 0:01:14]} 7. c3 {[%emt 0:03:25]} h6 {[%emt 0:02:35]} 8. h3 {[%emt 0:01:02]} Qe7 {[%emt 0:02:21]} 9. Ne5 {[%emt 0:14:25]} Bd6 {[%emt 0:02:54]} 10. Qa4 {[%emt 0:01:37]} Bd7 {[%emt 0:01:56]} 11. Nxd7 {[%emt 0:01:29]} Qxd7 {[%emt 0:03:45]} 12. Bxd6 {[%emt 0:02:48]} Qxd6 {[%emt 0:00:08]} 13. Nd2 {[%emt 0:01:45]} 1/2-1/2

[Event "POL-chT 2 Liga 2019"]
[Site "Poronin"]
[Date "2019.09.10"]
[Round "4.16"]
[White "Jaskolka, Tomasz"]
[Black "Zminda, Bogdan"]
[Result "1/2-1/2"]
[ECO "E73"]
[WhiteElo "2236"]
[BlackElo "1970"]
[Annotator "NA"]
[PlyCount "64"]
[EventDate "2019.09.07"]
[EventType "team-tourn"]
[EventCountry "POL"]
[SourceTitle "playchess.com"]
[Source "ChessBase"]
[SourceQuality "1"]
[TimeControl "40/5400+30:1800+30"]

1. d4 {[%emt 0:00:00]} Nf6 {[%emt 0:00:00]} 2. c4 {[%emt 0:00:00]} g6 {[%emt 0:00:00]} 3. Nc3 {[%emt 0:00:00]} Bg7 {[%emt 0:00:26]} 4. e4 {[%emt 0:00:08]} d6 {[%emt 0:00:09]} 5. Be2 {[%emt 0:00:24]} O-O {[%emt 0:00:32]} 6. Be3 {[%emt 0:00:06]} e5 {[%emt 0:02:22]} 7. d5 {[%emt 0:00:19]} Na6 {[%emt 0:01:09]} 8. Qd2 {[%emt 0:00:22]} Ng4 {[%emt 0:01:38]} 9. Bxg4 {[%emt 0:00:07]} Bxg4 {[%emt 0:00:02]} 10. f3 {[%emt 0:02:24]} Bd7 {[%emt 0:00:09]} 11. g4 {[%emt 0:08:20]} f5 {[%emt 0:01:24]} 12. gxf5 {[%emt 0:04:24]} gxf5 {[%emt 0:00:03]} 13. O-O-O {[%emt 0:06:36]} f4 {[%emt 0:05:41]} 14. Bf2 {[%emt 0:03:06]} Nc5 {[%emt 0:01:36]} 15. h4 {[%emt 0:05:22]} b6 {[%emt 0:05:31]} 16. h5 {[%emt 0:14:15]} Bf6 {[%emt 0:00:36]} 17. Nge2 {[%emt 0:04:29]} Kh8 {[%emt 0:00:19]} 18. b4 {[%emt 0:24:41]} Na4 {[%emt 0:02:34]} 19. Rdg1 {[%emt 0:07:11]} Nxc3 {[%emt 0:01:02]} 20. Qxc3 {[%emt 0:00:04]} a5 {[%emt 0:05:13]} 21. b5 {[%emt 0:00:04]} Qe7 {[%emt 0:08:03]} 22. Qe1 {[%emt 0:06:00]} Rg8 {[%emt 0:00:17]} 23. Kd2 {[%emt 0:02:11]} Rxg1 {[%emt 0:00:25]} 24. Qxg1 {[%emt 0:00:54]} Rg8 {[%emt 0:00:31]} 25. Qh2 {[%emt 0:01:21]} Qg7 {[%emt 0:08:00]} 26. h6 {[%emt 0:02:53]} Qg2 {[%emt 0:00:45]} 27. Bh4 {[%emt 0:00:51]} Bxh4 {[%emt 0:00:31]} 28. Qxh4 {[%emt 0:00:04]} Qg5 {[%emt 0:00:35]} 29. Qh2 {[%emt 0:01:13]} Rg6 {[%emt 0:01:37]} 30. Ke1 {[%emt 0:02:01]} Qg2 {[%emt 0:05:08]} 31. Qh4 {[%emt 0:00:46]} Qg5 {[%emt 0:00:31]} 32. Qh2 {[%emt 0:00:20]} Qg2 {[%emt 0:00:40]} 1/2-1/2

[Event "POL-chT 2 Liga 2019"]
[Site "Poronin"]
[Date "2019.09.10"]
[Round "4.17"]
[White "Borowski, Przemyslaw"]
[Black "Pulik, Krzysztof"]
[Result "0-1"]
[ECO "D32"]
[WhiteElo "1765"]
[BlackElo "2131"]
[Annotator "NA"]
[PlyCount "58"]
[EventDate "2019.09.07"]
[EventType "team-tourn"]
[EventCountry "POL"]
[SourceTitle "playchess.com"]
[Source "ChessBase"]
[SourceQuality "1"]
[TimeControl "40/5400+30:1800+30"]

1. d4 {[%emt 0:00:00]} d5 {[%emt 0:00:00]} 2. c4 {[%emt 0:00:00]} e6 {[%emt 0:00:00]} 3. Nc3 {[%emt 0:00:00]} c5 {[%emt 0:00:00]} 4. cxd5 {[%emt 0:01:07]} exd5 {[%emt 0:00:00]} 5. e4 {[%emt 0:02:37]} dxe4 {[%emt 0:00:41]} 6. Bc4 {[%emt 0:01:04]} Nf6 {[%emt 0:02:29]} 7. Qb3 {[%emt 0:13:41]} cxd4 {[%emt 0:00:13]} 8. Bxf7+ {[%emt 0:01:54]} Ke7 {[%emt 0:00:06]} 9. Bf4 {[%emt 0:01:24]} Nc6 {[%emt 0:06:14]} 10. Bc4 {[%emt 0:02:33]} Na5 {[%emt 0:11:02]} 11. Qb4+ {[%emt 0:01:56]} Ke8 {[%emt 0:00:50]} 12. Qb5+ {[%emt 0:01:32]} Nc6 {[%emt 0:14:55]} 13. O-O-O {[%emt 0:23:24]} Bd6 {[%emt 0:10:15]} 14. Qg5 {[%emt 0:09:49]} Kf8 {[%emt 0:25:51]} 15. Nge2 {[%emt 0:15:07]} d3 {[%emt 0:08:42]} 16. Ng3 {[%emt 0:05:34]} Be7 {[%emt 0:01:51]} 17. Nf5 {[%emt 0:04:35]} Bxf5 {[%emt 0:00:49]} 18. Qxf5 {[%emt 0:00:36]} Nd4 {[%emt 0:00:39]} 19. Qe5 {[%emt 0:08:10]} Rc8 {[%emt 0:00:15]} 20. Bb3 {[%emt 0:01:37]} Rc5 {[%emt 0:01:15]} 21. Qb8 {[%emt 0:01:08]} Nxb3+ {[%emt 0:03:46]} 22. axb3 {[%emt 0:00:06]} Qxb8 {[%emt 0:03:39]} 23. Bxb8 {[%emt 0:00:04]} Nd5 {[%emt 0:02:10]} 24. Bxa7 {[%emt 0:02:08]} Nxc3 {[%emt 0:01:09]} 25. bxc3 {[%emt 0:01:34]} Rxc3+ {[%emt 0:00:21]} 26. Kb2 {[%emt 0:00:35]} Rc2+ {[%emt 0:01:08]} 27. Kb1 {[%emt 0:00:07]} Bf6 {[%emt 0:00:09]} 28. Be3 {[%emt 0:01:00]} Kf7 {[%emt 0:00:08]} 29. Rd2 {[%emt 0:00:19]} Ra8 {[%emt 0:00:13]} 0-1

[Event "POL-chT 2 Liga 2019"]
[Site "Poronin"]
[Date "2019.09.10"]
[Round "4.18"]
[White "Lukasiewicz, Anna"]
[Black "Czaplewska, Klara"]
[Result "1-0"]
[ECO "E62"]
[WhiteElo "2075"]
[BlackElo "1870"]
[Annotator "NA"]
[PlyCount "85"]
[EventDate "2019.09.07"]
[EventType "team-tourn"]
[EventCountry "POL"]
[SourceTitle "playchess.com"]
[Source "ChessBase"]
[SourceQuality "1"]
[TimeControl "40/5400+30:1800+30"]

1. c4 {[%emt 0:00:00]} Nf6 {[%emt 0:00:23]} 2. Nc3 {[%emt 0:00:54]} d6 {[%emt 0:03:05]} 3. g3 {[%emt 0:01:33]} g6 {[%emt 0:00:42]} 4. Bg2 {[%emt 0:01:14]} Bg7 {[%emt 0:00:11]} 5. Nf3 {[%emt 0:02:30]} O-O {[%emt 0:03:45]} 6. d4 {[%emt 0:04:16]} Nc6 {[%emt 0:01:48]} 7. O-O {[%emt 0:02:30]} e5 {[%emt 0:01:11]} 8. d5 {[%emt 0:02:32]} Ne7 {[%emt 0:02:14]} 9. e4 {[%emt 0:04:21]} Ne8 {[%emt 0:05:07]} 10. Bd2 {[%emt 0:10:50]} f5 {[%emt 0:03:48]} 11. Qc1 {[%emt 0:03:37]} fxe4 {[%emt 0:01:14]} 12. Nxe4 {[%emt 0:00:07]} Nf5 {[%emt 0:12:22]} 13. c5 {[%emt 0:13:37]} Ne7 {[%emt 0:19:54]} 14. Bg5 {[%emt 0:11:44]} Bg4 {[%emt 0:01:23]} 15. Nfd2 {[%emt 0:07:57]} Qd7 {[%emt 0:00:49]} 16. c6 {[%emt 0:10:33]} bxc6 {[%emt 0:03:52]} 17. dxc6 {[%emt 0:00:31]} Qe6 {[%emt 0:02:02]} 18. Nc3 {[%emt 0:02:54]} h6 {[%emt 0:06:23]} 19. Bxe7 {[%emt 0:00:23]} Qxe7 {[%emt 0:00:02]} 20. Nd5 {[%emt 0:01:19]} Qf7 {[%emt 0:02:38]} 21. Qc4 {[%emt 0:04:11]} Be6 {[%emt 0:00:54]} 22. Rad1 {[%emt 0:01:29]} Nf6 {[%emt 0:02:46]} 23. Nb1 {[%emt 0:01:27]} Nh7 {[%emt 0:05:53]} 24. h4 {[%emt 0:03:13]} Kh8 {[%emt 0:02:24]} 25. Nbc3 {[%emt 0:00:17]} Rab8 {[%emt 0:03:00]} 26. b3 {[%emt 0:00:22]} Nf6 {[%emt 0:01:34]} 27. Qd3 {[%emt 0:01:34]} Nxd5 {[%emt 0:05:52]} 28. Bxd5 {[%emt 0:02:19]} Bxd5 {[%emt 0:00:42]} 29. Nxd5 {[%emt 0:00:17]} a5 {[%emt 0:02:19]} 30. a3 {[%emt 0:01:59]} e4 {[%emt 0:01:22]} 31. Qxe4 {[%emt 0:00:46]} Rxb3 {[%emt 0:00:10]} 32. Ne7 {[%emt 0:00:28]} Re8 {[%emt 0:02:17]} 33. Nxg6+ {[%emt 0:00:30]} Kg8 {[%emt 0:00:37]} 34. Qg4 {[%emt 0:01:08]} Rxa3 {[%emt 0:00:40]} 35. Rde1 {[%emt 0:01:00]} Rxe1 {[%emt 0:00:46]} 36. Rxe1 {[%emt 0:00:05]} Ra2 {[%emt 0:00:09]} 37. Nf4 {[%emt 0:00:53]} a4 {[%emt 0:01:15]} 38. Qc8+ {[%emt 0:01:16]} Kh7 {[%emt 0:00:25]} 39. Qd7 {[%emt 0:00:42]} Qf6 {[%emt 0:00:42]} 40. Qxc7 {[%emt 0:00:00]} a3 {[%emt 0:00:00]} 41. Qa5 {[%emt 0:09:27]} Rc2 {[%emt 0:14:09]} 42. Qxa3 {[%emt 0:01:29]} Rxc6 {[%emt 0:00:10]} 43. Qd3+ 1-0

[Event "POL-chT 2 Liga 2019"]
[Site "Poronin"]
[Date "2019.09.10"]
[Round "4.19"]
[White "Krzyzanowski, Marcin"]
[Black "Chojnacki, Krzysztof"]
[Result "1-0"]
[ECO "C84"]
[WhiteElo "2502"]
[BlackElo "2362"]
[Annotator "ChessBase"]
[PlyCount "85"]
[EventDate "2019.09.07"]
[EventType "team-tourn"]
[EventCountry "POL"]
[SourceTitle "playchess.com"]
[Source "ChessBase"]
[SourceQuality "1"]
[TimeControl "40/5400+30:1800+30"]

1. e4 {[%emt 0:00:00]} e5 {[%emt 0:00:00]} 2. Nf3 {[%emt 0:00:00]} Nc6 {[%emt 0:00:00]} 3. Bb5 {[%emt 0:00:00]} a6 {[%emt 0:00:00]} 4. Ba4 {[%emt 0:00:00]} Nf6 {[%emt 0:00:00]} 5. O-O {[%emt 0:00:00]} Be7 {[%emt 0:00:12]} 6. d3 {[%emt 0:00:57]} b5 {[%emt 0:02:57]} 7. Bb3 {[%emt 0:00:03]} d6 {[%emt 0:00:15]} 8. a3 {[%emt 0:02:31]} O-O {[%emt 0:01:41]} 9. Nc3 {[%emt 0:00:48]} Na5 {[%emt 0:14:12]} 10. Ba2 {[%emt 0:01:48]} c5 {[%emt 0:00:15]} 11. Bg5 {[%emt 0:06:41]} Be6 {[%emt 0:04:35]} 12. Bxf6 {[%emt 0:02:08]} Bxf6 {[%emt 0:00:03]} 13. Nd5 {[%emt 0:00:11]} Nc6 {[%emt 0:05:10]} 14. h3 {[%emt 0:03:55]} Bg5 {[%emt 0:06:09]} 15. c3 {[%emt 0:04:36]} Ra7 {[%emt 0:03:07]} 16. a4 {[%emt 0:03:22]} Bh6 {[%emt 0:07:46]} 17. Bb3 {[%emt 0:04:04]} b4 {[%emt 0:04:49]} 18. Nh2 {[%emt 0:07:52]} Qh4 {[%emt 0:05:57]} 19. Ng4 {[%emt 0:14:25]} Kh8 {[%emt 0:07:00]} 20. Nde3 {[%emt 0:04:34]} Bxe3 {[%emt 0:08:28]} 21. Nxe3 {[%emt 0:01:06]} Na5 {[%emt 0:02:08]} 22. Bd5 {[%emt 0:02:40]} bxc3 {[%emt 0:00:31]} 23. bxc3 {[%emt 0:00:22]} Bxd5 {[%emt 0:00:05]} 24. Nxd5 {[%emt 0:00:31]} f5 {[%emt 0:01:32]} 25. exf5 {[%emt 0:02:40]} Rxf5 {[%emt 0:00:35]} 26. Rb1 {[%emt 0:00:02]} Rf8 {[%emt 0:01:12]} 27. Rb6 {[%emt 0:03:30]} c4 {[%emt 0:01:18]} 28. Rxd6 {[%emt 0:02:07]} Raf7 {[%emt 0:01:01]} 29. f4 {[%emt 0:24:45]} exf4 {[%emt 0:01:45]} 30. Rxa6 {[%emt 0:00:29]} Qd8 {[%emt 0:02:37]} 31. dxc4 {[%emt 0:03:19]} f3 {[%emt 0:02:06]} 32. Ne3 {[%emt 0:03:02]} Qg5 {[%emt 0:01:39]} 33. Rxf3 {[%emt 0:00:47]} h6 {[%emt 0:01:27]} 34. Rxf7 {[%emt 0:02:55]} Qxe3+ {[%emt 0:00:22]} 35. Kh1 {[%emt 0:00:31]} Rxf7 {[%emt 0:00:08]} 36. Rxa5 {[%emt 0:00:31]} Qe4 {[%emt 0:03:10]} 37. Rd5 {[%emt 0:00:20]} Ra7 {[%emt 0:01:25]} 38. a5 {[%emt 0:00:48]} Qxc4 {[%emt 0:00:37]} 39. Qd4 {[%emt 0:00:26]} Qf1+ {[%emt 0:10:49]} 40. Kh2 {[%emt 0:00:00]} Re7 {[%emt 0:00:00]} 41. c4 {[%emt 0:03:09]} Qe2 {[%emt 0:02:36]} 42. a6 {[%emt 0:03:12]} Re4 {[%emt 0:00:30]} 43. Qd3 {[%emt 0:02:23]} 1-0

[Event "POL-chT 2 Liga 2019"]
[Site "Poronin"]
[Date "2019.09.10"]
[Round "4.20"]
[White "Raczynski, Krzysztof"]
[Black "Polok, Kacper"]
[Result "0-1"]
[ECO "C06"]
[WhiteElo "2244"]
[BlackElo "2307"]
[Annotator "NA"]
[PlyCount "176"]
[EventDate "2019.09.07"]
[EventType "team-tourn"]
[EventCountry "POL"]
[SourceTitle "playchess.com"]
[Source "ChessBase"]
[SourceQuality "1"]
[TimeControl "40/5400+30:1800+30"]

1. e4 {[%emt 0:00:00]} e6 {[%emt 0:00:00]} 2. d4 {[%emt 0:00:00]} d5 {[%emt 0:00:10]} 3. Nd2 {[%emt 0:00:00]} Nf6 {[%emt 0:00:22]} 4. e5 {[%emt 0:00:00]} Nfd7 {[%emt 0:00:29]} 5. Bd3 {[%emt 0:00:10]} c5 {[%emt 0:00:15]} 6. c3 {[%emt 0:00:07]} Nc6 {[%emt 0:00:36]} 7. Ne2 {[%emt 0:00:10]} cxd4 {[%emt 0:00:48]} 8. cxd4 {[%emt 0:00:11]} f6 {[%emt 0:00:18]} 9. exf6 {[%emt 0:00:26]} Nxf6 {[%emt 0:00:10]} 10. Nf3 {[%emt 0:00:39]} Bd6 {[%emt 0:00:55]} 11. O-O {[%emt 0:00:44]} O-O {[%emt 0:00:12]} 12. Bf4 {[%emt 0:01:05]} Bxf4 {[%emt 0:00:27]} 13. Nxf4 {[%emt 0:00:05]} Ng4 {[%emt 0:00:11]} 14. Qc1 {[%emt 0:03:05]} Qd6 {[%emt 0:01:48]} 15. g3 {[%emt 0:02:24]} e5 {[%emt 0:01:50]} 16. dxe5 {[%emt 0:05:26]} Ngxe5 {[%emt 0:00:47]} 17. Nxe5 {[%emt 0:08:04]} Nxe5 {[%emt 0:00:16]} 18. Be2 {[%emt 0:01:06]} Bf5 {[%emt 0:16:08]} 19. Qe3 {[%emt 0:05:32]} d4 {[%emt 0:05:25]} 20. Qb3+ {[%emt 0:04:29]} Kh8 {[%emt 0:01:13]} 21. Rfd1 {[%emt 0:04:10]} Rad8 {[%emt 0:10:09]} 22. Qxb7 {[%emt 0:08:49]} d3 {[%emt 0:03:53]} 23. Rac1 {[%emt 0:05:26]} Rf7 {[%emt 0:07:25]} 24. Qg2 {[%emt 0:10:19]} Rfd7 {[%emt 0:12:08]} 25. Bf3 {[%emt 0:02:32]} Qb4 {[%emt 0:04:01]} 26. Bc6 {[%emt 0:06:36]} Rd6 {[%emt 0:03:52]} 27. Nd5 {[%emt 0:03:04]} Qe4 {[%emt 0:06:42]} 28. Ne3 {[%emt 0:10:59]} Rxc6 {[%emt 0:02:58]} 29. Nxf5 {[%emt 0:01:26]} Qxg2+ {[%emt 0:03:21]} 30. Kxg2 {[%emt 0:00:14]} Rxc1 {[%emt 0:00:06]} 31. Rxc1 {[%emt 0:00:03]} d2 {[%emt 0:00:08]} 32. Rd1 {[%emt 0:00:27]} Nc4 {[%emt 0:00:11]} 33. Ne3 {[%emt 0:00:31]} Nxb2 {[%emt 0:03:10]} 34. Rb1 {[%emt 0:00:46]} d1=Q {[%emt 0:02:39]} 35. Nxd1 {[%emt 0:00:08]} Nxd1 {[%emt 0:00:05]} 36. Rb7 {[%emt 0:01:24]} Ra8 {[%emt 0:03:38]} 37. Rb3 {[%emt 0:04:26]} Kg8 {[%emt 0:04:08]} 38. f4 {[%emt 0:01:59]} Rc8 {[%emt 0:00:31]} 39. Kh3 {[%emt 0:01:22]} h6 {[%emt 0:01:07]} 40. Rb7 {[%emt 0:00:00]} a5 {[%emt 0:00:00]} 41. Rb5 {[%emt 0:02:59]} a4 {[%emt 0:04:05]} 42. Ra5 {[%emt 0:05:48]} Rc4 {[%emt 0:02:34]} 43. Kg4 {[%emt 0:01:01]} Nc3 {[%emt 0:00:26]} 44. Kf5 {[%emt 0:01:13]} Nxa2 {[%emt 0:01:54]} 45. g4 {[%emt 0:05:58]} Nc3 {[%emt 0:02:06]} 46. g5 {[%emt 0:00:56]} hxg5 {[%emt 0:00:07]} 47. fxg5 {[%emt 0:00:22]} Kh7 {[%emt 0:01:38]} 48. Ra8 {[%emt 0:02:49]} Rc5+ {[%emt 0:00:52]} 49. Kg4 {[%emt 0:00:29]} Kg6 {[%emt 0:01:43]} 50. Ra6+ {[%emt 0:00:25]} Kf7 {[%emt 0:01:46]} 51. Ra7+ {[%emt 0:00:58]} Ke6 {[%emt 0:00:31]} 52. h4 {[%emt 0:01:43]} g6 {[%emt 0:02:01]} 53. Ra6+ {[%emt 0:01:46]} Ke5 {[%emt 0:05:03]} 54. Rxg6 {[%emt 0:03:52]} Rc4+ {[%emt 0:04:50]} 55. Kh5 {[%emt 0:00:30]} Ne4 {[%emt 0:00:07]} 56. Ra6 {[%emt 0:02:36]} Ng3+ {[%emt 0:00:15]} 57. Kg6 {[%emt 0:00:12]} Rxh4 {[%emt 0:00:09]} 58. Ra5+ {[%emt 0:00:47]} Kd6 {[%emt 0:00:18]} 59. Kf7 {[%emt 0:00:50]} Rf4+ {[%emt 0:02:28]} 60. Kg8 {[%emt 0:01:46]} Kc6 {[%emt 0:01:10]} 61. g6 {[%emt 0:00:36]} Kb6 {[%emt 0:00:26]} 62. Ra8 {[%emt 0:00:23]} Nh5 {[%emt 0:01:17]} 63. Kh7 {[%emt 0:01:19]} Kb5 {[%emt 0:00:35]} 64. Kh6 {[%emt 0:00:34]} Rf5 {[%emt 0:01:02]} 65. Rb8+ {[%emt 0:01:13]} Kc4 {[%emt 0:00:31]} 66. Ra8 {[%emt 0:01:33]} Kb3 {[%emt 0:00:07]} 67. Rb8+ {[%emt 0:00:17]} Ka2 {[%emt 0:00:13]} 68. Rb4 {[%emt 0:00:28]} a3 {[%emt 0:02:14]} 69. Rh4 {[%emt 0:00:13]} Nf6 {[%emt 0:00:41]} 70. Rb4 {[%emt 0:01:58]} Ka1 {[%emt 0:00:52]} 71. g7 {[%emt 0:00:23]} Ng8+ {[%emt 0:01:16]} 72. Kg6 {[%emt 0:01:07]} Ne7+ {[%emt 0:00:06]} 73. Kh6 {[%emt 0:00:04]} Rf6+ {[%emt 0:01:34]} 74. Kh7 {[%emt 0:00:54]} Rf2 {[%emt 0:00:14]} 75. Kh6 {[%emt 0:01:10]} Nf5+ {[%emt 0:00:22]} 76. Kh7 {[%emt 0:00:22]} Nxg7 {[%emt 0:00:07]} 77. Kxg7 {[%emt 0:00:05]} a2 {[%emt 0:00:06]} 78. Rb5 {[%emt 0:00:55]} Rb2 {[%emt 0:01:38]} 79. Rf5 {[%emt 0:00:17]} Kb1 {[%emt 0:00:29]} 80. Rf1+ {[%emt 0:00:06]} Kc2 {[%emt 0:00:05]} 81. Rf2+ {[%emt 0:00:20]} Kb3 {[%emt 0:00:08]} 82. Rf3+ {[%emt 0:00:07]} Kb4 {[%emt 0:00:43]} 83. Rf4+ {[%emt 0:00:06]} Ka3 {[%emt 0:00:05]} 84. Rf3+ {[%emt 0:00:35]} Rb3 {[%emt 0:00:07]} 85. Rf1 {[%emt 0:00:04]} Rb1 {[%emt 0:00:11]} 86. Rf3+ {[%emt 0:00:05]} Kb4 {[%emt 0:00:06]} 87. Rf4+ {[%emt 0:00:09]} Kc5 {[%emt 0:00:07]} 88. Rf5+ {[%emt 0:00:11]} Kd4 {[%emt 0:00:06]} 0-1

[Event "POL-chT 2 Liga 2019"]
[Site "Poronin"]
[Date "2019.09.10"]
[Round "4.21"]
[White "Wieczorek, Zbigniew"]
[Black "Bardeli, Lukasz"]
[Result "1/2-1/2"]
[ECO "A11"]
[WhiteElo "2193"]
[BlackElo "2144"]
[Annotator "NA"]
[PlyCount "80"]
[EventDate "2019.09.07"]
[EventType "team-tourn"]
[EventCountry "POL"]
[SourceTitle "playchess.com"]
[Source "ChessBase"]
[SourceQuality "1"]
[TimeControl "40/5400+30:1800+30"]

1. c4 {[%emt 0:00:00]} c6 {[%emt 0:00:00]} 2. Nf3 {[%emt 0:01:16]} d5 {[%emt 0:00:00]} 3. e3 {[%emt 0:00:19]} Nf6 {[%emt 0:01:27]} 4. b3 {[%emt 0:00:21]} g6 {[%emt 0:00:09]} 5. Bb2 {[%emt 0:00:05]} Bg7 {[%emt 0:00:07]} 6. d3 {[%emt 0:02:04]} O-O {[%emt 0:00:14]} 7. Nbd2 {[%emt 0:00:14]} a5 {[%emt 0:01:18]} 8. a3 {[%emt 0:00:06]} Nbd7 {[%emt 0:03:47]} 9. cxd5 {[%emt 0:09:12]} cxd5 {[%emt 0:00:35]} 10. Rc1 {[%emt 0:01:56]} Re8 {[%emt 0:02:20]} 11. Be2 {[%emt 0:12:40]} e5 {[%emt 0:00:58]} 12. O-O {[%emt 0:00:17]} Qe7 {[%emt 0:07:11]} 13. Rc7 {[%emt 0:05:18]} Qd6 {[%emt 0:00:06]} 14. Rc2 {[%emt 0:11:13]} Qb8 {[%emt 0:03:13]} 15. Qa1 {[%emt 0:03:16]} Ng4 {[%emt 0:01:02]} 16. Rfc1 {[%emt 0:06:42]} Nh6 {[%emt 0:07:04]} 17. Nb1 {[%emt 0:11:17]} Nb6 {[%emt 0:03:55]} 18. Nbd2 {[%emt 0:08:34]} f6 {[%emt 0:01:50]} 19. e4 {[%emt 0:07:44]} d4 {[%emt 0:01:02]} 20. Nxd4 {[%emt 0:01:24]} exd4 {[%emt 0:01:54]} 21. Bxd4 {[%emt 0:00:18]} Nd7 {[%emt 0:01:34]} 22. Rc7 {[%emt 0:01:24]} Ne5 {[%emt 0:09:55]} 23. f4 {[%emt 0:01:28]} Nc6 {[%emt 0:00:26]} 24. Rxg7+ {[%emt 0:01:13]} Kxg7 {[%emt 0:00:03]} 25. Bxf6+ {[%emt 0:00:07]} Kg8 {[%emt 0:00:07]} 26. Rf1 {[%emt 0:05:34]} Bg4 {[%emt 0:07:01]} 27. Nf3 {[%emt 0:02:30]} Nf7 {[%emt 0:08:15]} 28. f5 {[%emt 0:01:23]} Qa7+ {[%emt 0:04:56]} 29. d4 {[%emt 0:00:51]} Rxe4 {[%emt 0:06:31]} 30. Bc4 {[%emt 0:00:17]} Bxf3 {[%emt 0:04:54]} 31. fxg6 {[%emt 0:00:51]} hxg6 {[%emt 0:00:22]} 32. Rxf3 {[%emt 0:01:14]} b5 {[%emt 0:14:52]} 33. Bd5 {[%emt 0:01:22]} Nxd4 {[%emt 0:00:15]} 34. Bxf7+ {[%emt 0:01:35]} Qxf7 {[%emt 0:00:13]} 35. Bxd4 {[%emt 0:00:09]} Qe6 {[%emt 0:00:47]} 36. Bf2 {[%emt 0:00:45]} Rc8 {[%emt 0:02:52]} 37. h3 {[%emt 0:01:03]} Qe5 {[%emt 0:01:44]} 38. Qd1 {[%emt 0:00:24]} Qe6 {[%emt 0:00:20]} 39. Qd3 {[%emt 0:00:52]} b4 {[%emt 0:02:08]} 40. axb4 {[%emt 0:00:00]} axb4 {[%emt 0:00:00]} 1/2-1/2